[Event "Late-Titled-Tuesday-Blitz-April-16-2024"]
[Site "Chess.com"]
[Date "2024.04.16"]
[Round "5"]
[White "giomar27"]
[Black "GaiozNigalidze"]
[Result "1-0"]
[WhiteElo "2495"]
[BlackElo "2685"]
[TimeControl "180+1"]
[EndTime "14:52:07 PDT"]
[Termination "giomar27 won on time"]

1. d4 {[%clk 0:03:00.9]} 1... Nf6 {[%clk 0:02:59.1]} 2. Nc3 {[%clk 0:03:01]}
2... e6 {[%clk 0:02:59.5]} 3. Bf4 {[%clk 0:03:00.2]} 3... d5 {[%clk 0:03:00.1]}
4. e3 {[%clk 0:03:00.6]} 4... c5 {[%clk 0:02:59.8]} 5. g4 {[%clk 0:03:00.9]}
5... Qb6 {[%clk 0:02:58.8]} 6. g5 {[%clk 0:03:00.3]} 6... Ne4 {[%clk 0:02:58.8]}
7. Nxe4 {[%clk 0:02:54.6]} 7... dxe4 {[%clk 0:02:58.8]} 8. Rb1 {[%clk
0:02:48.6]} 8... Nc6 {[%clk 0:02:40.6]} 9. c3 {[%clk 0:02:48.1]} 9... e5 {[%clk
0:02:26.7]} 10. dxe5 {[%clk 0:02:46]} 10... Be6 {[%clk 0:02:26.4]} 11. Qa4
{[%clk 0:02:42.1]} 11... O-O-O {[%clk 0:02:14]} 12. Bc4 {[%clk 0:02:41.7]} 12...
Be7 {[%clk 0:02:01.5]} 13. Bxe6+ {[%clk 0:02:39.6]} 13... fxe6 {[%clk
0:02:01.8]} 14. Qxe4 {[%clk 0:02:40.2]} 14... Qa6 {[%clk 0:01:57.2]} 15. Nf3
{[%clk 0:02:34.8]} 15... Qxa2 {[%clk 0:01:39.4]} 16. O-O {[%clk 0:02:34.6]}
16... Qd5 {[%clk 0:01:40]} 17. Qxd5 {[%clk 0:02:32.4]} 17... Rxd5 {[%clk
0:01:40.9]} 18. Rbd1 {[%clk 0:02:23.3]} 18... Rxd1 {[%clk 0:01:40.5]} 19. Rxd1
{[%clk 0:02:23.1]} 19... b5 {[%clk 0:01:38.6]} 20. Nd2 {[%clk 0:02:21.8]} 20...
Rd8 {[%clk 0:01:37.3]} 21. Kf1 {[%clk 0:02:20.8]} 21... a5 {[%clk 0:01:31.9]}
22. Ke2 {[%clk 0:02:20.7]} 22... a4 {[%clk 0:01:31.9]} 23. Ne4 {[%clk
0:02:20.7]} 23... Rxd1 {[%clk 0:01:31.6]} 24. Kxd1 {[%clk 0:02:20.8]} 24... Kc7
{[%clk 0:01:31.5]} 25. Kc2 {[%clk 0:02:19.4]} 25... Na5 {[%clk 0:01:30.3]} 26.
h4 {[%clk 0:02:17.4]} 26... b4 {[%clk 0:01:19.4]} 27. cxb4 {[%clk 0:02:17]}
27... cxb4 {[%clk 0:01:19.1]} 28. h5 {[%clk 0:02:17.5]} 28... b3+ {[%clk
0:00:20.3]} 29. Kb1 {[%clk 0:02:14.1]} 29... Nc4 {[%clk 0:00:09.8]} 30. h6
{[%clk 0:02:14.2]} 30... gxh6 {[%clk 0:00:09.3]} 31. gxh6 {[%clk 0:02:15.1]}
31... Kd7 {[%clk 0:00:09.2]} 32. Nc3 {[%clk 0:02:05.9]} 32... a3 {[%clk
0:00:05.9]} 33. bxa3 {[%clk 0:02:06.4]} 33... Bxa3 {[%clk 0:00:06.1]} 34. Ne4
{[%clk 0:02:00.3]} 34... Kc6 {[%clk 0:00:04.7]} 35. Bg3 {[%clk 0:01:47]} 35...
Kd5 {[%clk 0:00:03.8]} 36. Nc3+ {[%clk 0:01:46.1]} 36... Kc5 {[%clk 0:00:04.1]}
37. Ne4+ {[%clk 0:01:42.6]} 37... Kb4 {[%clk 0:00:03.8]} 38. f3 {[%clk
0:01:42.8]} 38... Kb5 {[%clk 0:00:02.6]} 39. Be1 {[%clk 0:01:29.6]} 39... Nxe5
{[%clk 0:00:02.2]} 40. Ng5 {[%clk 0:01:24.8]} 1-0

[Event "Late-Titled-Tuesday-Blitz-April-16-2024"]
[Site "Chess.com"]
[Date "2024.04.16"]
[Round "5"]
[White "DenLaz"]
[Black "Durarbayli"]
[Result "1-0"]
[WhiteElo "3111"]
[BlackElo "2883"]
[TimeControl "180+1"]
[EndTime "14:52:08 PDT"]
[Termination "DenLaz won on time"]

1. d4 {[%clk 0:03:00.9]} 1... Nf6 {[%clk 0:02:59.8]} 2. c4 {[%clk 0:03:01.6]}
2... e6 {[%clk 0:03:00.1]} 3. Nf3 {[%clk 0:03:02.1]} 3... b6 {[%clk 0:03:00.5]}
4. g3 {[%clk 0:03:02.7]} 4... Bb7 {[%clk 0:03:01]} 5. Bg2 {[%clk 0:03:03.3]}
5... Be7 {[%clk 0:03:01.5]} 6. O-O {[%clk 0:03:03.8]} 6... O-O {[%clk
0:03:02.2]} 7. Nc3 {[%clk 0:03:04]} 7... Ne4 {[%clk 0:03:02.2]} 8. Bd2 {[%clk
0:03:04.1]} 8... f5 {[%clk 0:02:59.4]} 9. Ne5 {[%clk 0:03:02.6]} 9... d6 {[%clk
0:02:56.1]} 10. Nd3 {[%clk 0:03:00.7]} 10... Qe8 {[%clk 0:02:56.1]} 11. d5
{[%clk 0:02:53.3]} 11... Nxd2 {[%clk 0:02:41.3]} 12. Qxd2 {[%clk 0:02:49.3]}
12... e5 {[%clk 0:02:41.8]} 13. e3 {[%clk 0:02:49.8]} 13... Nd7 {[%clk
0:02:34.2]} 14. f4 {[%clk 0:02:49.6]} 14... e4 {[%clk 0:02:33.2]} 15. Nf2 {[%clk
0:02:49.4]} 15... Bf6 {[%clk 0:02:27.7]} 16. g4 {[%clk 0:02:48.8]} 16... g6
{[%clk 0:02:26.2]} 17. Kh1 {[%clk 0:02:48.4]} 17... Nc5 {[%clk 0:02:23]} 18.
gxf5 {[%clk 0:02:44.6]} 18... gxf5 {[%clk 0:02:23]} 19. Bh3 {[%clk 0:02:45.2]}
19... Kh8 {[%clk 0:02:07.7]} 20. Bxf5 {[%clk 0:02:30.3]} 20... Bc8 {[%clk
0:01:36.4]} 21. Bxc8 {[%clk 0:02:28.3]} 21... Rxc8 {[%clk 0:01:37.3]} 22. Rg1
{[%clk 0:02:19.6]} 22... a5 {[%clk 0:01:31.4]} 23. Rg4 {[%clk 0:02:13]} 23...
Qh5 {[%clk 0:01:29.5]} 24. Rag1 {[%clk 0:02:13.1]} 24... Rce8 {[%clk 0:01:28.8]}
25. Nb5 {[%clk 0:02:09.9]} 25... Rg8 {[%clk 0:01:04.7]} 26. Qe2 {[%clk
0:02:01.7]} 26... Rxg4 {[%clk 0:01:01.8]} 27. Qxg4 {[%clk 0:01:55.9]} 27... Qxg4
{[%clk 0:00:57.2]} 28. Nxg4 {[%clk 0:01:55.8]} 28... Bxb2 {[%clk 0:00:57.7]} 29.
Nxc7 {[%clk 0:01:56.1]} 29... Re7 {[%clk 0:00:42.8]} 30. Nb5 {[%clk 0:01:55.9]}
30... h5 {[%clk 0:00:34.4]} 31. Nh6 {[%clk 0:01:50.7]} 31... Nd3 {[%clk
0:00:24.8]} 32. Nf5 {[%clk 0:01:49.1]} 32... Rd7 {[%clk 0:00:18.5]} 33. Nbxd6
{[%clk 0:01:48.8]} 33... Nf2+ {[%clk 0:00:02.6]} 34. Kg2 {[%clk 0:01:48.7]}
34... Ng4 {[%clk 0:00:03.5]} 35. Nxe4 {[%clk 0:01:49.1]} 35... Rf7 {[%clk
0:00:02.6]} 36. Ned6 {[%clk 0:01:49.5]} 36... Rf6 {[%clk 0:00:02.4]} 37. h3
{[%clk 0:01:49]} 37... Nxe3+ {[%clk 0:00:02.6]} 38. Nxe3 {[%clk 0:01:47.7]}
38... Rxd6 {[%clk 0:00:03.3]} 39. Kf3 {[%clk 0:01:48.2]} 39... Bd4 {[%clk
0:00:03.5]} 40. Nf5 {[%clk 0:01:46]} 40... Rxd5 {[%clk 0:00:04]} 41. cxd5 {[%clk
0:01:46]} 41... Bxg1 {[%clk 0:00:04.2]} 42. d6 {[%clk 0:01:46.5]} 42... b5
{[%clk 0:00:04.2]} 43. Ne3 {[%clk 0:01:30.3]} 1-0

[Event "Late-Titled-Tuesday-Blitz-April-16-2024"]
[Site "Chess.com"]
[Date "2024.04.16"]
[Round "5"]
[White "MrTattaglia"]
[Black "LyonBeast"]
[Result "0-1"]
[WhiteElo "2957"]
[BlackElo "3138"]
[TimeControl "180+1"]
[EndTime "14:52:09 PDT"]
[Termination "LyonBeast won on time"]

1. e4 {[%clk 0:02:51.9]} 1... c6 {[%clk 0:02:56.9]} 2. Nf3 {[%clk 0:02:47.6]}
2... d5 {[%clk 0:02:54.9]} 3. exd5 {[%clk 0:02:47.9]} 3... cxd5 {[%clk
0:02:54.6]} 4. Ne5 {[%clk 0:02:48.2]} 4... Nf6 {[%clk 0:02:54.7]} 5. d4 {[%clk
0:02:47]} 5... e6 {[%clk 0:02:54.4]} 6. Bd3 {[%clk 0:02:41]} 6... Nc6 {[%clk
0:02:51.9]} 7. c3 {[%clk 0:02:37.9]} 7... Bd6 {[%clk 0:02:44.9]} 8. f4 {[%clk
0:02:24.3]} 8... Ne4 {[%clk 0:02:39.3]} 9. O-O {[%clk 0:02:22.4]} 9... O-O
{[%clk 0:02:38.9]} 10. Nd2 {[%clk 0:02:22]} 10... f5 {[%clk 0:02:38]} 11. Ndf3
{[%clk 0:02:21.1]} 11... Bd7 {[%clk 0:02:35.2]} 12. Be3 {[%clk 0:02:18.3]} 12...
Rc8 {[%clk 0:02:31]} 13. Qb3 {[%clk 0:02:14]} 13... Na5 {[%clk 0:02:25]} 14. Qc2
{[%clk 0:02:13.7]} 14... Be8 {[%clk 0:02:24.9]} 15. Rae1 {[%clk 0:02:03.1]}
15... Qe7 {[%clk 0:02:17.8]} 16. Kh1 {[%clk 0:01:44.4]} 16... Bh5 {[%clk
0:02:17.6]} 17. Qa4 {[%clk 0:01:43.3]} 17... Nc6 {[%clk 0:02:07.5]} 18. a3
{[%clk 0:01:24.5]} 18... Qc7 {[%clk 0:01:54.7]} 19. Qc2 {[%clk 0:01:20.1]} 19...
Rf6 {[%clk 0:01:44.1]} 20. Ng5 {[%clk 0:01:13.5]} 20... h6 {[%clk 0:01:43.6]}
21. Nxe4 {[%clk 0:01:10.6]} 21... fxe4 {[%clk 0:01:44.1]} 22. Be2 {[%clk
0:01:07.8]} 22... Bxe2 {[%clk 0:01:43.8]} 23. Qxe2 {[%clk 0:01:08.7]} 23... Rcf8
{[%clk 0:01:43]} 24. g4 {[%clk 0:01:03.5]} 24... b6 {[%clk 0:01:13.4]} 25. h4
{[%clk 0:00:57.6]} 25... Bxe5 {[%clk 0:01:13.5]} 26. dxe5 {[%clk 0:00:56.3]}
26... R6f7 {[%clk 0:01:14.1]} 27. h5 {[%clk 0:00:52.1]} 27... Qe7 {[%clk
0:01:13.8]} 28. Kg2 {[%clk 0:00:49.5]} 28... Kh7 {[%clk 0:01:13.1]} 29. Kg3
{[%clk 0:00:40.1]} 29... Nxe5 {[%clk 0:01:13.2]} 30. g5 {[%clk 0:00:14.9]} 30...
Nf3 {[%clk 0:01:06]} 31. Rxf3 {[%clk 0:00:05]} 31... exf3 {[%clk 0:01:06.4]} 32.
Qc2+ {[%clk 0:00:02.1]} 32... Rf5 {[%clk 0:01:06.4]} 0-1

[Event "Late-Titled-Tuesday-Blitz-April-16-2024"]
[Site "Chess.com"]
[Date "2024.04.16"]
[Round "5"]
[White "Szparu"]
[Black "Bryanl106"]
[Result "1-0"]
[WhiteElo "2885"]
[BlackElo "2704"]
[TimeControl "180+1"]
[EndTime "14:52:09 PDT"]
[Termination "Szparu won by resignation"]

1. e4 {[%clk 0:03:00.9]} 1... e5 {[%clk 0:02:56.5]} 2. Nf3 {[%clk 0:03:00.8]}
2... Nc6 {[%clk 0:02:56.3]} 3. Bb5 {[%clk 0:03:00.9]} 3... a6 {[%clk 0:02:56.3]}
4. Ba4 {[%clk 0:03:01]} 4... Nf6 {[%clk 0:02:56.2]} 5. O-O {[%clk 0:03:01]} 5...
Be7 {[%clk 0:02:56.4]} 6. d3 {[%clk 0:02:59.8]} 6... b5 {[%clk 0:02:56.2]} 7.
Bb3 {[%clk 0:03:00]} 7... d6 {[%clk 0:02:56.9]} 8. c3 {[%clk 0:02:57.1]} 8...
O-O {[%clk 0:02:55.9]} 9. Re1 {[%clk 0:02:53.8]} 9... Na5 {[%clk 0:02:56]} 10.
Bc2 {[%clk 0:02:53.2]} 10... c5 {[%clk 0:02:56.1]} 11. d4 {[%clk 0:02:52.1]}
11... Qc7 {[%clk 0:02:55.5]} 12. d5 {[%clk 0:02:38.9]} 12... Bg4 {[%clk
0:02:54.1]} 13. Nbd2 {[%clk 0:02:38.3]} 13... c4 {[%clk 0:02:51]} 14. h3 {[%clk
0:02:37.8]} 14... Bh5 {[%clk 0:02:49.5]} 15. g4 {[%clk 0:02:34.1]} 15... Nxg4
{[%clk 0:02:41.8]} 16. hxg4 {[%clk 0:02:33.3]} 16... Bxg4 {[%clk 0:02:42.7]} 17.
Nf1 {[%clk 0:02:27.6]} 17... Nb7 {[%clk 0:02:41.9]} 18. Ne3 {[%clk 0:02:23]}
18... Bh5 {[%clk 0:02:41.7]} 19. Kg2 {[%clk 0:02:23.1]} 19... Nc5 {[%clk
0:02:39.2]} 20. Rh1 {[%clk 0:02:22.2]} 20... g6 {[%clk 0:02:39.1]} 21. Rxh5
{[%clk 0:02:16.3]} 21... gxh5 {[%clk 0:02:40]} 22. Qh1 {[%clk 0:02:15.7]} 22...
Kh8 {[%clk 0:02:34.6]} 23. Qxh5 {[%clk 0:02:15.3]} 23... Rg8+ {[%clk 0:02:34.9]}
24. Kf1 {[%clk 0:02:14.6]} 24... Qd7 {[%clk 0:02:35.1]} 25. Nf5 {[%clk
0:02:14.7]} 25... Rg6 {[%clk 0:02:33.2]} 26. Ke2 {[%clk 0:02:10.7]} 26... Rag8
{[%clk 0:02:32.2]} 27. Be3 {[%clk 0:02:10.6]} 27... Bf8 {[%clk 0:02:16.7]} 28.
Rh1 {[%clk 0:02:00.7]} 28... f6 {[%clk 0:02:15.8]} 29. N3h4 {[%clk 0:01:31.9]}
29... Rg4 {[%clk 0:02:11.6]} 30. Bd1 {[%clk 0:01:01.5]} 30... Nxe4 {[%clk
0:02:03.5]} 31. Kf1 {[%clk 0:00:51]} 31... R4g5 {[%clk 0:01:33.6]} 32. Bxg5
{[%clk 0:00:50.8]} 32... Rxg5 {[%clk 0:01:34.5]} 33. Ng6+ {[%clk 0:00:31.1]}
33... Kg8 {[%clk 0:01:33.8]} 34. Nfe7+ {[%clk 0:00:23.5]} 34... Kf7 {[%clk
0:01:26.3]} 35. Qxh7+ {[%clk 0:00:17.8]} 35... Ke8 {[%clk 0:01:26.5]} 36. Qh8
{[%clk 0:00:13.6]} 36... Ng3+ {[%clk 0:01:14.5]} 37. fxg3 {[%clk 0:00:13]} 37...
Rxg6 {[%clk 0:01:14.5]} 38. Nxg6 {[%clk 0:00:09.6]} 38... Qf5+ {[%clk
0:01:14.4]} 39. Kg1 {[%clk 0:00:08.1]} 39... Qxg6 {[%clk 0:01:14]} 40. Bh5
{[%clk 0:00:08.2]} 40... Qxh5 {[%clk 0:01:14.9]} 41. Qxh5+ {[%clk 0:00:08.2]}
1-0

[Event "Late-Titled-Tuesday-Blitz-April-16-2024"]
[Site "Chess.com"]
[Date "2024.04.16"]
[Round "5"]
[White "Alphafischer2019"]
[Black "esrosenberg"]
[Result "1-0"]
[WhiteElo "2723"]
[BlackElo "2337"]
[TimeControl "180+1"]
[EndTime "14:52:11 PDT"]
[Termination "Alphafischer2019 won on time"]

1. Nf3 {[%clk 0:03:00.9]} 1... d5 {[%clk 0:02:57.8]} 2. g3 {[%clk 0:03:00.4]}
2... Nd7 {[%clk 0:02:57.4]} 3. Bg2 {[%clk 0:02:56.4]} 3... e5 {[%clk 0:02:57.3]}
4. d3 {[%clk 0:02:57.3]} 4... Ngf6 {[%clk 0:02:56.4]} 5. O-O {[%clk 0:02:54.9]}
5... Bd6 {[%clk 0:02:55.8]} 6. Nh4 {[%clk 0:02:55.3]} 6... O-O {[%clk
0:02:46.6]} 7. Nf5 {[%clk 0:02:54.9]} 7... Bc5 {[%clk 0:02:46.7]} 8. e4 {[%clk
0:02:53.8]} 8... c6 {[%clk 0:02:44.1]} 9. Qe2 {[%clk 0:02:47.4]} 9... Re8 {[%clk
0:02:39.8]} 10. Kh1 {[%clk 0:02:45.9]} 10... a5 {[%clk 0:02:35.6]} 11. a4 {[%clk
0:02:41.6]} 11... Nf8 {[%clk 0:02:31.9]} 12. Nd2 {[%clk 0:02:38.4]} 12... Ba7
{[%clk 0:02:10.6]} 13. Nf3 {[%clk 0:02:33.1]} 13... Bxf5 {[%clk 0:02:05.1]} 14.
exf5 {[%clk 0:02:31.7]} 14... e4 {[%clk 0:02:06]} 15. Nh4 {[%clk 0:02:21.6]}
15... Qd7 {[%clk 0:01:51.1]} 16. Bg5 {[%clk 0:02:19.2]} 16... Qd6 {[%clk
0:01:44.8]} 17. Qd2 {[%clk 0:02:09.5]} 17... h6 {[%clk 0:01:42.9]} 18. Bf4
{[%clk 0:02:09.1]} 18... Qc5 {[%clk 0:01:41.3]} 19. c3 {[%clk 0:02:00]} 19...
exd3 {[%clk 0:01:38]} 20. Qxd3 {[%clk 0:02:00.2]} 20... Ne4 {[%clk 0:01:38.6]}
21. Be3 {[%clk 0:01:57]} 21... Qe7 {[%clk 0:01:33.8]} 22. Rae1 {[%clk
0:01:53.3]} 22... Bxe3 {[%clk 0:01:32.7]} 23. Qxe3 {[%clk 0:01:53.4]} 23... Qc5
{[%clk 0:01:27.5]} 24. Bxe4 {[%clk 0:01:49.6]} 24... Qxe3 {[%clk 0:01:26.8]} 25.
Rxe3 {[%clk 0:01:50.1]} 25... Rxe4 {[%clk 0:01:19.2]} 26. Rxe4 {[%clk
0:01:50.3]} 26... dxe4 {[%clk 0:01:20]} 27. Re1 {[%clk 0:01:51.1]} 27... Re8
{[%clk 0:01:15.9]} 28. f3 {[%clk 0:01:49.5]} 28... e3 {[%clk 0:01:14.3]} 29. Ng2
{[%clk 0:01:49.9]} 29... e2 {[%clk 0:01:14.2]} 30. Nf4 {[%clk 0:01:50.1]} 30...
Re5 {[%clk 0:01:14]} 31. Rxe2 {[%clk 0:01:48.4]} 31... Rxf5 {[%clk 0:01:13.7]}
32. Re7 {[%clk 0:01:48.4]} 32... b5 {[%clk 0:01:12.3]} 33. axb5 {[%clk 0:01:49]}
33... Rxb5 {[%clk 0:01:11.3]} 34. Re2 {[%clk 0:01:48.8]} 34... Ne6 {[%clk
0:01:09.7]} 35. Nd3 {[%clk 0:01:43.2]} 35... Nc5 {[%clk 0:01:06.1]} 36. Ne5
{[%clk 0:01:40.7]} 36... Na4 {[%clk 0:01:00.2]} 37. Nc4 {[%clk 0:01:37.6]} 37...
Kf8 {[%clk 0:00:55.5]} 38. Kg2 {[%clk 0:01:31.6]} 38... Nb6 {[%clk 0:00:52.3]}
39. Nd6 {[%clk 0:01:31]} 39... g5 {[%clk 0:00:42.9]} 40. Re8+ {[%clk 0:01:29.4]}
40... Kg7 {[%clk 0:00:42.1]} 41. Nxb5 {[%clk 0:01:30.3]} 41... cxb5 {[%clk
0:00:42.1]} 42. Rb8 {[%clk 0:01:31.2]} 42... Nc4 {[%clk 0:00:40.7]} 43. Rxb5
{[%clk 0:01:32.1]} 43... a4 {[%clk 0:00:40]} 44. Rb4 {[%clk 0:01:31.8]} 44... a3
{[%clk 0:00:35.6]} 45. Rxc4 {[%clk 0:01:30.7]} 1-0

[Event "Late-Titled-Tuesday-Blitz-April-16-2024"]
[Site "Chess.com"]
[Date "2024.04.16"]
[Round "5"]
[White "GWR2024"]
[Black "MaxLeto"]
[Result "0-1"]
[WhiteElo "2171"]
[BlackElo "2425"]
[TimeControl "180+1"]
[EndTime "14:52:11 PDT"]
[Termination "MaxLeto won by resignation"]

1. e4 {[%clk 0:03:00.9]} 1... c5 {[%clk 0:03:00.3]} 2. Nc3 {[%clk 0:03:00]} 2...
Nc6 {[%clk 0:02:59.7]} 3. f4 {[%clk 0:03:00.1]} 3... g6 {[%clk 0:03:00.3]} 4.
Nf3 {[%clk 0:02:59.7]} 4... Bg7 {[%clk 0:03:01.2]} 5. a3 {[%clk 0:02:58.3]} 5...
e6 {[%clk 0:03:00]} 6. b4 {[%clk 0:02:56.4]} 6... cxb4 {[%clk 0:02:56.1]} 7.
axb4 {[%clk 0:02:56.4]} 7... d5 {[%clk 0:02:42.7]} 8. b5 {[%clk 0:02:40.1]} 8...
dxe4 {[%clk 0:02:26.6]} 9. bxc6 {[%clk 0:02:24.4]} 9... exf3 {[%clk 0:02:26.3]}
10. Qxf3 {[%clk 0:02:23.7]} 10... bxc6 {[%clk 0:02:26.1]} 11. Ba3 {[%clk
0:02:16.8]} 11... Bb7 {[%clk 0:02:17]} 12. Ne4 {[%clk 0:01:52.5]} 12... Bxa1
{[%clk 0:02:12.8]} 13. Nd6+ {[%clk 0:01:52.3]} 13... Kd7 {[%clk 0:02:10]} 14.
Nxb7 {[%clk 0:01:51.6]} 14... Qb6 {[%clk 0:02:03.6]} 15. Nc5+ {[%clk 0:01:42.3]}
15... Ke8 {[%clk 0:01:52.9]} 16. Ba6 {[%clk 0:01:35.4]} 16... Ne7 {[%clk
0:01:43]} 17. Ke2 {[%clk 0:01:22.3]} 17... Bd4 {[%clk 0:01:37.9]} 18. Bb7 {[%clk
0:00:30.3]} 18... Rd8 {[%clk 0:01:38.2]} 19. Rb1 {[%clk 0:00:18]} 19... Qxb1
{[%clk 0:01:32.7]} 20. Bxc6+ {[%clk 0:00:18.1]} 20... Kf8 {[%clk 0:01:32.4]} 21.
Nd7+ {[%clk 0:00:14.8]} 21... Kg7 {[%clk 0:01:12.3]} 22. Bxe7 {[%clk 0:00:12.6]}
22... Rxd7 {[%clk 0:01:11.1]} 23. Bxd7 {[%clk 0:00:13.2]} 23... Qxc2 {[%clk
0:01:08.4]} 24. Qd3 {[%clk 0:00:13.3]} 24... Qxd3+ {[%clk 0:01:06.9]} 25. Kxd3
{[%clk 0:00:14.2]} 25... Bg1 {[%clk 0:00:57.7]} 26. h4 {[%clk 0:00:12.9]} 26...
Rb8 {[%clk 0:00:57.1]} 27. Bd6 {[%clk 0:00:12.2]} 27... Rd8 {[%clk 0:00:54.9]}
28. Be5+ {[%clk 0:00:12.1]} 28... f6 {[%clk 0:00:55.6]} 29. Bd4 {[%clk 0:00:09]}
29... Rxd7 {[%clk 0:00:55.4]} 30. Ke2 {[%clk 0:00:08]} 30... Bxd4 {[%clk
0:00:56.3]} 0-1

[Event "Late-Titled-Tuesday-Blitz-April-16-2024"]
[Site "Chess.com"]
[Date "2024.04.16"]
[Round "5"]
[White "carlsenCamacho"]
[Black "FMYiLiu"]
[Result "0-1"]
[WhiteElo "2292"]
[BlackElo "2470"]
[TimeControl "180+1"]
[EndTime "14:52:12 PDT"]
[Termination "FMYiLiu won by checkmate"]

1. e4 {[%clk 0:03:00.9]} 1... e6 {[%clk 0:03:00.2]} 2. d4 {[%clk 0:03:00.2]}
2... d5 {[%clk 0:03:00.7]} 3. Nd2 {[%clk 0:03:01.1]} 3... c5 {[%clk 0:03:00.6]}
4. Ngf3 {[%clk 0:02:57.9]} 4... cxd4 {[%clk 0:03:00.8]} 5. Nxd4 {[%clk
0:02:57.7]} 5... Nc6 {[%clk 0:03:01.2]} 6. Nxc6 {[%clk 0:02:56.6]} 6... bxc6
{[%clk 0:03:02.1]} 7. Bd3 {[%clk 0:02:57.4]} 7... Ne7 {[%clk 0:02:55.8]} 8. O-O
{[%clk 0:02:56.3]} 8... Ng6 {[%clk 0:02:56.2]} 9. f4 {[%clk 0:02:54.4]} 9...
Bc5+ {[%clk 0:02:46.3]} 10. Kh1 {[%clk 0:02:53.6]} 10... O-O {[%clk 0:02:46.7]}
11. e5 {[%clk 0:02:50.6]} 11... a5 {[%clk 0:02:37.6]} 12. Qe2 {[%clk 0:02:37]}
12... a4 {[%clk 0:02:34.1]} 13. Nf3 {[%clk 0:02:30.9]} 13... f5 {[%clk
0:02:29.9]} 14. exf6 {[%clk 0:02:29.6]} 14... Qxf6 {[%clk 0:02:29.9]} 15. Ne5
{[%clk 0:02:14]} 15... Nxe5 {[%clk 0:02:08.6]} 16. fxe5 {[%clk 0:02:14.9]} 16...
Qxf1+ {[%clk 0:02:09.2]} 17. Qxf1 {[%clk 0:02:14.8]} 17... Rxf1+ {[%clk
0:02:10.1]} 18. Bxf1 {[%clk 0:02:15.2]} 18... Bd4 {[%clk 0:02:08.7]} 19. c3
{[%clk 0:01:51.1]} 19... Bxe5 {[%clk 0:02:08.2]} 20. Bd3 {[%clk 0:01:51.2]}
20... a3 {[%clk 0:02:06.3]} 21. bxa3 {[%clk 0:01:49.1]} 21... Bxc3 {[%clk
0:02:05.8]} 22. Rb1 {[%clk 0:01:49.7]} 22... e5 {[%clk 0:02:01.7]} 23. a4 {[%clk
0:01:46.1]} 23... e4 {[%clk 0:01:42.3]} 24. Bc2 {[%clk 0:01:45.9]} 24... Ba6
{[%clk 0:01:34.6]} 25. Ba3 {[%clk 0:01:37.6]} 25... Bd3 {[%clk 0:01:31.5]} 26.
Rb3 {[%clk 0:01:27.7]} 26... d4 {[%clk 0:01:17.9]} 27. Rxc3 {[%clk 0:00:26.3]}
27... dxc3 {[%clk 0:01:17.3]} 28. Bb3+ {[%clk 0:00:26.8]} 28... Kh8 {[%clk
0:01:17.2]} 29. Kg1 {[%clk 0:00:20.1]} 29... e3 {[%clk 0:01:14.6]} 30. g3 {[%clk
0:00:17.4]} 30... c2 {[%clk 0:01:13.5]} 31. Kg2 {[%clk 0:00:15.7]} 31... Rf8
{[%clk 0:01:11.7]} 32. a5 {[%clk 0:00:11.1]} 32... e2 {[%clk 0:01:09.7]} 33. a6
{[%clk 0:00:02.4]} 33... e1=Q {[%clk 0:01:09.4]} 34. Bxf8 {[%clk 0:00:02.2]}
34... Qf1# {[%clk 0:01:09.4]} 0-1

[Event "Late-Titled-Tuesday-Blitz-April-16-2024"]
[Site "Chess.com"]
[Date "2024.04.16"]
[Round "5"]
[White "martinmena"]
[Black "Denisenko_Denis"]
[Result "0-1"]
[WhiteElo "2178"]
[BlackElo "2418"]
[TimeControl "180+1"]
[EndTime "14:52:20 PDT"]
[Termination "Denisenko_Denis won on time"]

1. c4 {[%clk 0:03:00.9]} 1... c6 {[%clk 0:02:59.3]} 2. g3 {[%clk 0:02:57.9]}
2... d5 {[%clk 0:02:53.2]} 3. Bg2 {[%clk 0:02:58.1]} 3... Bf5 {[%clk 0:02:52.3]}
4. Nf3 {[%clk 0:02:58.6]} 4... e6 {[%clk 0:02:51.6]} 5. d4 {[%clk 0:02:56.9]}
5... Nf6 {[%clk 0:02:51.3]} 6. O-O {[%clk 0:02:55.3]} 6... Be7 {[%clk
0:02:50.1]} 7. Nc3 {[%clk 0:02:54.2]} 7... Ne4 {[%clk 0:02:49.9]} 8. cxd5 {[%clk
0:02:50.7]} 8... exd5 {[%clk 0:02:49]} 9. Qb3 {[%clk 0:02:42.8]} 9... Qb6 {[%clk
0:02:48.3]} 10. Qxb6 {[%clk 0:02:33.9]} 10... axb6 {[%clk 0:02:49.2]} 11. Nxe4
{[%clk 0:02:26.1]} 11... Bxe4 {[%clk 0:02:48.4]} 12. Bf4 {[%clk 0:02:14.7]}
12... Nd7 {[%clk 0:02:47.2]} 13. h4 {[%clk 0:02:03.9]} 13... b5 {[%clk
0:02:33.3]} 14. Rfe1 {[%clk 0:01:21.3]} 14... O-O {[%clk 0:02:29.3]} 15. Bh3
{[%clk 0:01:18.8]} 15... Nb6 {[%clk 0:02:26.4]} 16. Ne5 {[%clk 0:01:01.5]} 16...
Nc4 {[%clk 0:02:16.7]} 17. Nxc4 {[%clk 0:00:34.7]} 17... bxc4 {[%clk 0:02:17.6]}
18. h5 {[%clk 0:00:20.8]} 18... h6 {[%clk 0:02:10.8]} 19. f3 {[%clk 0:00:19.1]}
19... Bh7 {[%clk 0:02:09.9]} 20. e4 {[%clk 0:00:18.3]} 20... Bb4 {[%clk
0:02:06.4]} 21. Re2 {[%clk 0:00:14.7]} 21... Rfd8 {[%clk 0:02:03.7]} 22. e5
{[%clk 0:00:10.8]} 22... c3 {[%clk 0:01:57.8]} 23. Bc1 {[%clk 0:00:04]} 23... c5
{[%clk 0:01:52]} 24. bxc3 {[%clk 0:00:01.8]} 24... Bxc3 {[%clk 0:01:51]} 25. Bb2
{[%clk 0:00:02.3]} 25... cxd4 {[%clk 0:01:46.6]} 26. Bxc3 {[%clk 0:00:02.4]}
26... dxc3 {[%clk 0:01:46.5]} 27. a4 {[%clk 0:00:02.9]} 27... d4 {[%clk
0:01:46.2]} 28. f4 {[%clk 0:00:02.1]} 28... d3 {[%clk 0:01:46.2]} 29. Re3 {[%clk
0:00:02.1]} 29... b5 {[%clk 0:01:43.2]} 30. Bg4 {[%clk 0:00:02.2]} 30... bxa4
{[%clk 0:01:42]} 31. Bf3 {[%clk 0:00:02.1]} 31... Ra7 {[%clk 0:01:41.1]} 32. Rc1
{[%clk 0:00:01.1]} 32... d2 {[%clk 0:01:39.2]} 33. Rcxc3 {[%clk 0:00:01.4]}
33... d1=Q+ {[%clk 0:01:34.2]} 34. Bxd1 {[%clk 0:00:01.6]} 34... Rxd1+ {[%clk
0:01:34.9]} 35. Kg2 {[%clk 0:00:02.1]} 35... Bf5 {[%clk 0:01:30.7]} 36. Ra3
{[%clk 0:00:01.3]} 36... Be6 {[%clk 0:01:25.6]} 37. Kf3 {[%clk 0:00:01.7]} 37...
Rb1 {[%clk 0:01:20.3]} 38. Re4 {[%clk 0:00:01.2]} 38... Bd5 {[%clk 0:01:19.9]}
39. Ke3 {[%clk 0:00:01.1]} 39... Bxe4 {[%clk 0:01:17.5]} 40. Kxe4 {[%clk
0:00:02]} 40... Rb3 {[%clk 0:01:17.3]} 0-1